[Event "Early-Titled-Tuesday-Blitz-May-14-2024"]
[Site "Chess.com"]
[Date "2024.05.14"]
[Round "9"]
[White "ImportedItalianMaple"]
[Black "urano56"]
[Result "1-0"]
[WhiteElo "2593"]
[BlackElo "2431"]
[TimeControl "180+1"]
[EndTime "9:47:44 PDT"]
[Termination "ImportedItalianMaple won by resignation"]

1. e4 {[%clk 0:03:00.9]} 1... c5 {[%clk 0:02:56.4]} 2. Nf3 {[%clk 0:03:01.2]}
2... d6 {[%clk 0:02:56.3]} 3. Bc4 {[%clk 0:02:56.6]} 3... Nf6 {[%clk 0:02:54.2]}
4. d3 {[%clk 0:02:55.9]} 4... Nc6 {[%clk 0:02:42.3]} 5. c3 {[%clk 0:02:55]} 5...
e6 {[%clk 0:02:37.5]} 6. Bb3 {[%clk 0:02:50.6]} 6... Be7 {[%clk 0:02:35.6]} 7.
O-O {[%clk 0:02:46.3]} 7... O-O {[%clk 0:02:35.2]} 8. Re1 {[%clk 0:02:46.3]}
8... e5 {[%clk 0:02:28.3]} 9. h3 {[%clk 0:02:42.9]} 9... Rb8 {[%clk 0:02:23.2]}
10. a4 {[%clk 0:02:34.2]} 10... a6 {[%clk 0:02:22.3]} 11. d4 {[%clk 0:02:31.5]}
11... Qc7 {[%clk 0:02:19.3]} 12. Nbd2 {[%clk 0:01:58.6]} 12... b5 {[%clk
0:02:18.7]} 13. axb5 {[%clk 0:01:57.9]} 13... axb5 {[%clk 0:02:17.5]} 14. Nf1
{[%clk 0:01:57.6]} 14... c4 {[%clk 0:01:38.4]} 15. Bc2 {[%clk 0:01:56.9]} 15...
b4 {[%clk 0:01:37]} 16. Ng3 {[%clk 0:01:54.2]} 16... g6 {[%clk 0:01:32.4]} 17.
Qe2 {[%clk 0:01:30.9]} 17... b3 {[%clk 0:01:09]} 18. Bb1 {[%clk 0:01:29.2]}
18... Nd8 {[%clk 0:00:52.6]} 19. Ra4 {[%clk 0:01:15.8]} 19... exd4 {[%clk
0:00:40]} 20. Rxc4 {[%clk 0:01:13.6]} 20... Qb6 {[%clk 0:00:27.7]} 21. Rb4
{[%clk 0:01:09.3]} 21... Qa7 {[%clk 0:00:12.8]} 22. Rxb8 {[%clk 0:01:06.6]}
22... Qxb8 {[%clk 0:00:13.7]} 23. cxd4 {[%clk 0:00:56.5]} 23... Nc6 {[%clk
0:00:09.7]} 24. Bf4 {[%clk 0:00:33.2]} 24... Qb6 {[%clk 0:00:07.9]} 25. Be3
{[%clk 0:00:19.5]} 25... Ba6 {[%clk 0:00:07.3]} 26. Qd2 {[%clk 0:00:19.3]} 26...
Qb7 {[%clk 0:00:07.9]} 27. d5 {[%clk 0:00:17.9]} 27... Ne5 {[%clk 0:00:07.8]}
28. Nxe5 {[%clk 0:00:17.8]} 28... dxe5 {[%clk 0:00:08.3]} 29. d6 {[%clk
0:00:18.3]} 29... Rd8 {[%clk 0:00:07]} 30. Bc5 {[%clk 0:00:15.7]} 30... Bf8
{[%clk 0:00:07.3]} 31. Rd1 {[%clk 0:00:15.8]} 31... Ne8 {[%clk 0:00:07.5]} 32.
Qd5 {[%clk 0:00:13.6]} 32... Nxd6 {[%clk 0:00:03.7]} 33. Qxe5 {[%clk 0:00:11.2]}
33... Nc4 {[%clk 0:00:02.3]} 34. Rxd8 {[%clk 0:00:10.6]} 34... Nxe5 {[%clk
0:00:02.2]} 35. Bxf8 {[%clk 0:00:11.3]} 35... Nc6 {[%clk 0:00:01.9]} 36. Re8
{[%clk 0:00:09.4]} 36... Qd7 {[%clk 0:00:02.1]} 37. Ra8 {[%clk 0:00:06.3]} 37...
Bb7 {[%clk 0:00:02.1]} 38. Ra3 {[%clk 0:00:03.1]} 38... Kxf8 {[%clk 0:00:01.8]}
39. Rxb3 {[%clk 0:00:04]} 39... Nd4 {[%clk 0:00:02.1]} 40. Rd3 {[%clk
0:00:03.4]} 40... Nb5 {[%clk 0:00:00.4]} 41. Rxd7 {[%clk 0:00:03.2]} 41... Bc6
{[%clk 0:00:01.3]} 42. Rd8+ {[%clk 0:00:03.2]} 42... Ke7 {[%clk 0:00:01.3]} 43.
Rb8 {[%clk 0:00:04.1]} 43... Bd7 {[%clk 0:00:01.3]} 44. f3 {[%clk 0:00:05]}
44... Nd4 {[%clk 0:00:00.6]} 45. Rb6 {[%clk 0:00:05.3]} 45... Kd8 {[%clk
0:00:00.4]} 46. Kf2 {[%clk 0:00:05.9]} 46... Kc7 {[%clk 0:00:00.9]} 47. Rb4
{[%clk 0:00:06.6]} 47... Nc6 {[%clk 0:00:01.6]} 48. Rc4 {[%clk 0:00:07]} 48...
Kb7 {[%clk 0:00:02.5]} 49. Rc3 {[%clk 0:00:07.6]} 49... Na5 {[%clk 0:00:03.1]}
50. Ne2 {[%clk 0:00:08.2]} 50... Kb6 {[%clk 0:00:03.7]} 51. Nd4 {[%clk
0:00:08.8]} 51... Nc6 {[%clk 0:00:04.6]} 52. Nxc6 {[%clk 0:00:08.4]} 52... Bxc6
{[%clk 0:00:05.5]} 53. Rxc6+ {[%clk 0:00:09.1]} 53... Kxc6 {[%clk 0:00:05.8]}
54. Bd3 {[%clk 0:00:10]} 54... Kc5 {[%clk 0:00:06.4]} 55. Ke3 {[%clk 0:00:10.9]}
55... Kb4 {[%clk 0:00:07.2]} 56. Bc2 {[%clk 0:00:11.2]} 1-0

[Event "Early-Titled-Tuesday-Blitz-May-14-2024"]
[Site "Chess.com"]
[Date "2024.05.14"]
[Round "9"]
[White "lucasmito"]
[Black "laboratorio25"]
[Result "1-0"]
[WhiteElo "2719"]
[BlackElo "2540"]
[TimeControl "180+1"]
[EndTime "9:47:45 PDT"]
[Termination "lucasmito won by resignation"]

1. e4 {[%clk 0:02:55]} 1... c5 {[%clk 0:03:00.1]} 2. Nf3 {[%clk 0:02:51.1]} 2...
d6 {[%clk 0:03:00.5]} 3. Nc3 {[%clk 0:02:52]} 3... Nf6 {[%clk 0:02:59.8]} 4. d4
{[%clk 0:02:52.5]} 4... cxd4 {[%clk 0:02:59.7]} 5. Nxd4 {[%clk 0:02:53.4]} 5...
a6 {[%clk 0:02:59.6]} 6. Be3 {[%clk 0:02:53.7]} 6... e6 {[%clk 0:02:58.9]} 7. g4
{[%clk 0:02:53.3]} 7... b5 {[%clk 0:02:56.5]} 8. g5 {[%clk 0:02:48.9]} 8... Nfd7
{[%clk 0:02:56.1]} 9. Rg1 {[%clk 0:02:41.8]} 9... Bb7 {[%clk 0:02:55.3]} 10. a3
{[%clk 0:02:39]} 10... Nc6 {[%clk 0:02:53.2]} 11. f4 {[%clk 0:02:30.8]} 11...
Nxd4 {[%clk 0:02:50.5]} 12. Qxd4 {[%clk 0:02:29.5]} 12... e5 {[%clk 0:02:46.1]}
13. Qd2 {[%clk 0:02:10.4]} 13... exf4 {[%clk 0:02:26.1]} 14. Bxf4 {[%clk
0:02:11.3]} 14... Ne5 {[%clk 0:02:26.2]} 15. Be2 {[%clk 0:01:56.9]} 15... Be7
{[%clk 0:02:06.4]} 16. O-O-O {[%clk 0:01:51.6]} 16... Rc8 {[%clk 0:02:05.8]} 17.
h4 {[%clk 0:01:38.9]} 17... Qa5 {[%clk 0:01:50.7]} 18. Bxe5 {[%clk 0:01:30.4]}
18... b4 {[%clk 0:01:40.7]} 19. Bxg7 {[%clk 0:01:18.8]} 19... bxc3 {[%clk
0:01:29.1]} 20. Bxc3 {[%clk 0:01:16.1]} 20... Rxc3 {[%clk 0:01:28.5]} 21. Qxc3
{[%clk 0:01:17]} 21... Qxc3 {[%clk 0:01:27.9]} 22. bxc3 {[%clk 0:01:17.9]} 22...
Bxe4 {[%clk 0:01:27.2]} 23. Bxa6 {[%clk 0:01:13.5]} 23... Kd7 {[%clk 0:01:23.6]}
24. Bd3 {[%clk 0:01:05.1]} 24... Bc6 {[%clk 0:01:18.9]} 25. Rgf1 {[%clk
0:00:59.9]} 25... Bd5 {[%clk 0:00:52.4]} 26. Bb5+ {[%clk 0:00:56.6]} 26... Bc6
{[%clk 0:00:52.7]} 27. Bxc6+ {[%clk 0:00:56.1]} 27... Kxc6 {[%clk 0:00:53.6]}
28. Rxf7 {[%clk 0:00:57]} 28... Bd8 {[%clk 0:00:53.6]} 29. Ra7 {[%clk
0:00:51.6]} 29... Bb6 {[%clk 0:00:53.1]} 30. Ra6 {[%clk 0:00:51.4]} 30... Rb8
{[%clk 0:00:52.1]} 31. c4 {[%clk 0:00:42.7]} 31... Kc5 {[%clk 0:00:41.3]} 32.
Rd5+ {[%clk 0:00:37.1]} 32... Kxc4 {[%clk 0:00:40]} 33. Rxd6 {[%clk 0:00:36.8]}
33... Bc5 {[%clk 0:00:37.4]} 34. Rac6 {[%clk 0:00:30.9]} 34... Kb5 {[%clk
0:00:32.8]} 35. Rxc5+ {[%clk 0:00:27.4]} 35... Kxc5 {[%clk 0:00:32.9]} 36. Rd7
{[%clk 0:00:28.3]} 36... h6 {[%clk 0:00:30.5]} 37. gxh6 {[%clk 0:00:28.2]} 37...
Rb6 {[%clk 0:00:29.6]} 38. h7 {[%clk 0:00:23.9]} 38... Rh6 {[%clk 0:00:29.5]}
39. Rg7 {[%clk 0:00:21.3]} 39... Rxh4 {[%clk 0:00:27.9]} 40. a4 {[%clk
0:00:20.7]} 40... Rh3 {[%clk 0:00:25.2]} 41. Kb2 {[%clk 0:00:18.1]} 41... Kb4
{[%clk 0:00:24.7]} 42. Rb7+ {[%clk 0:00:15.6]} 42... Kxa4 {[%clk 0:00:21]} 43.
c4 {[%clk 0:00:15.2]} 43... Ka5 {[%clk 0:00:20.6]} 44. c5 {[%clk 0:00:15.8]}
44... Ka6 {[%clk 0:00:20.3]} 45. c6 {[%clk 0:00:16.5]} 45... Rh6 {[%clk
0:00:18.5]} 46. Kb3 {[%clk 0:00:14]} 46... Rh4 {[%clk 0:00:10.9]} 47. Rg7 {[%clk
0:00:09.9]} 47... Kb6 {[%clk 0:00:06.2]} 48. c7 {[%clk 0:00:10.6]} 48... Rh3+
{[%clk 0:00:04.5]} 49. Kc4 {[%clk 0:00:10.7]} 49... Kb7 {[%clk 0:00:01.2]} 50.
c8=Q+ {[%clk 0:00:08.9]} 50... Kxc8 {[%clk 0:00:01.8]} 51. Rg8+ {[%clk
0:00:09.5]} 51... Kd7 {[%clk 0:00:02.4]} 52. h8=Q {[%clk 0:00:10.2]} 1-0

[Event "Early-Titled-Tuesday-Blitz-May-14-2024"]
[Site "Chess.com"]
[Date "2024.05.14"]
[Round "9"]
[White "Knightmare1014"]
[Black "SujanaLohani"]
[Result "0-1"]
[WhiteElo "2265"]
[BlackElo "2001"]
[TimeControl "180+1"]
[EndTime "9:47:45 PDT"]
[Termination "SujanaLohani won by checkmate"]

1. e4 {[%clk 0:02:54.5]} 1... c5 {[%clk 0:02:59.9]} 2. Nf3 {[%clk 0:02:54.1]}
2... g6 {[%clk 0:02:59.9]} 3. d4 {[%clk 0:02:54]} 3... cxd4 {[%clk 0:02:58.1]}
4. Nxd4 {[%clk 0:02:54.9]} 4... Nc6 {[%clk 0:02:50.9]} 5. c4 {[%clk 0:02:54.5]}
5... Nf6 {[%clk 0:02:49.2]} 6. Nc3 {[%clk 0:02:54.1]} 6... d6 {[%clk 0:02:48.9]}
7. f3 {[%clk 0:02:53.5]} 7... Nxd4 {[%clk 0:02:43]} 8. Qxd4 {[%clk 0:02:52.9]}
8... Bg7 {[%clk 0:02:43.5]} 9. Be3 {[%clk 0:02:52.2]} 9... O-O {[%clk
0:02:41.9]} 10. Qd2 {[%clk 0:02:45.8]} 10... a5 {[%clk 0:02:41.1]} 11. b3 {[%clk
0:02:41.3]} 11... a4 {[%clk 0:02:34.3]} 12. b4 {[%clk 0:02:37.1]} 12... Be6
{[%clk 0:02:32.1]} 13. Be2 {[%clk 0:02:22]} 13... Qc7 {[%clk 0:02:31]} 14. Nb5
{[%clk 0:02:16.5]} 14... Qc8 {[%clk 0:02:30.6]} 15. Rc1 {[%clk 0:02:14.1]} 15...
a3 {[%clk 0:02:16.4]} 16. O-O {[%clk 0:02:13.1]} 16... Ra4 {[%clk 0:02:15.9]}
17. Bd1 {[%clk 0:01:54.9]} 17... Ra8 {[%clk 0:02:14.1]} 18. Bb3 {[%clk
0:01:54.5]} 18... Bd7 {[%clk 0:02:10.4]} 19. Nc3 {[%clk 0:01:45.7]} 19... Re8
{[%clk 0:01:58.1]} 20. c5 {[%clk 0:01:45.2]} 20... dxc5 {[%clk 0:01:54.4]} 21.
Bxc5 {[%clk 0:01:45]} 21... Be6 {[%clk 0:01:53.9]} 22. Nd5 {[%clk 0:01:44.4]}
22... Qd7 {[%clk 0:01:45.8]} 23. Nxf6+ {[%clk 0:00:56.5]} 23... exf6 {[%clk
0:01:40.6]} 24. Qxd7 {[%clk 0:00:55]} 24... Bxd7 {[%clk 0:01:41.5]} 25. Rfd1
{[%clk 0:00:52.4]} 25... Be6 {[%clk 0:01:40]} 26. Bxe6 {[%clk 0:00:44.1]} 26...
Rxe6 {[%clk 0:01:38.9]} 27. Rd7 {[%clk 0:00:43]} 27... f5 {[%clk 0:01:38.9]} 28.
exf5 {[%clk 0:00:34.9]} 28... Re2 {[%clk 0:01:38.6]} 29. Rcd1 {[%clk 0:00:30.4]}
29... h5 {[%clk 0:01:31.9]} 30. fxg6 {[%clk 0:00:21.7]} 30... fxg6 {[%clk
0:01:28.7]} 31. R1d2 {[%clk 0:00:20.3]} 31... Rae8 {[%clk 0:01:23]} 32. Rxe2
{[%clk 0:00:19.8]} 32... Rxe2 {[%clk 0:01:22.7]} 33. Rxb7 {[%clk 0:00:19.7]}
33... Rxa2 {[%clk 0:01:23.3]} 34. Ra7 {[%clk 0:00:20]} 34... Ra1+ {[%clk
0:01:09.7]} 35. Kf2 {[%clk 0:00:20]} 35... a2 {[%clk 0:01:10.1]} 36. b5 {[%clk
0:00:19.1]} 36... Rc1 {[%clk 0:01:07.8]} 37. Rxa2 {[%clk 0:00:15.8]} 37... Rxc5
{[%clk 0:01:06.9]} 38. Ra8+ {[%clk 0:00:13.6]} 38... Kh7 {[%clk 0:01:04.2]} 39.
Rb8 {[%clk 0:00:13.7]} 39... Rc2+ {[%clk 0:01:01.7]} 40. Kf1 {[%clk 0:00:11.4]}
40... Bd4 {[%clk 0:01:00]} 41. b6 {[%clk 0:00:10.1]} 41... Rf2+ {[%clk
0:00:55.3]} 42. Ke1 {[%clk 0:00:09.3]} 42... Rxg2 {[%clk 0:00:54.6]} 43. b7
{[%clk 0:00:08.9]} 43... Rb2 {[%clk 0:00:51.3]} 44. Rd8 {[%clk 0:00:08.6]} 44...
Bc3+ {[%clk 0:00:49.5]} 45. Kd1 {[%clk 0:00:07.5]} 45... Rxb7 {[%clk 0:00:49]}
46. Kc2 {[%clk 0:00:07.7]} 46... Bg7 {[%clk 0:00:48.7]} 47. Kd3 {[%clk
0:00:07.3]} 47... Rb2 {[%clk 0:00:49]} 48. h3 {[%clk 0:00:06.3]} 48... Rh2
{[%clk 0:00:48.8]} 49. Ke4 {[%clk 0:00:06.5]} 49... Rxh3 {[%clk 0:00:48.7]} 50.
f4 {[%clk 0:00:06.6]} 50... Rg3 {[%clk 0:00:47.6]} 51. Rd5 {[%clk 0:00:03.4]}
51... h4 {[%clk 0:00:47]} 52. Rg5 {[%clk 0:00:00.7]} 52... Rxg5 {[%clk
0:00:45.1]} 53. fxg5 {[%clk 0:00:01.6]} 53... h3 {[%clk 0:00:45.8]} 54. Kf3
{[%clk 0:00:02.1]} 54... Be5 {[%clk 0:00:45.8]} 55. Kf2 {[%clk 0:00:00.7]} 55...
Kg8 {[%clk 0:00:45.9]} 56. Kg1 {[%clk 0:00:00.1]} 56... Kf7 {[%clk 0:00:46.8]}
57. Kh1 {[%clk 0:00:00.2]} 57... Ke6 {[%clk 0:00:47.7]} 58. Kg1 {[%clk
0:00:00.4]} 58... Kf5 {[%clk 0:00:48.6]} 59. Kh1 {[%clk 0:00:01.3]} 59... Kxg5
{[%clk 0:00:49.5]} 60. Kg1 {[%clk 0:00:02.2]} 60... Kh4 {[%clk 0:00:50.4]} 61.
Kh1 {[%clk 0:00:03.1]} 61... g5 {[%clk 0:00:51.3]} 62. Kg1 {[%clk 0:00:03.5]}
62... g4 {[%clk 0:00:52.2]} 63. Kh1 {[%clk 0:00:04.4]} 63... g3 {[%clk
0:00:53.1]} 64. Kg1 {[%clk 0:00:05.3]} 64... Bd4+ {[%clk 0:00:52.7]} 65. Kh1
{[%clk 0:00:06.2]} 65... g2+ {[%clk 0:00:53.6]} 66. Kh2 {[%clk 0:00:06.4]} 66...
g1=Q# {[%clk 0:00:54.5]} 0-1

[Event "Early-Titled-Tuesday-Blitz-May-14-2024"]
[Site "Chess.com"]
[Date "2024.05.14"]
[Round "9"]
[White "Kors67"]
[Black "ATM622"]
[Result "1-0"]
[WhiteElo "2300"]
[BlackElo "2536"]
[TimeControl "180+1"]
[EndTime "9:47:47 PDT"]
[Termination "Kors67 won on time"]

1. e4 {[%clk 0:03:00.9]} 1... c6 {[%clk 0:02:59.7]} 2. d4 {[%clk 0:02:59.8]}
2... d5 {[%clk 0:03:00.1]} 3. exd5 {[%clk 0:03:00.2]} 3... cxd5 {[%clk
0:03:00.3]} 4. Bd3 {[%clk 0:03:00.7]} 4... Nc6 {[%clk 0:03:00.5]} 5. Nf3 {[%clk
0:02:59.5]} 5... Nf6 {[%clk 0:03:00.4]} 6. O-O {[%clk 0:02:59.1]} 6... g6 {[%clk
0:03:00.8]} 7. h3 {[%clk 0:02:54.4]} 7... Bg7 {[%clk 0:03:01.1]} 8. Bf4 {[%clk
0:02:54.8]} 8... O-O {[%clk 0:03:01.1]} 9. c3 {[%clk 0:02:52.5]} 9... Bf5 {[%clk
0:03:00.9]} 10. Re1 {[%clk 0:02:50.1]} 10... Re8 {[%clk 0:03:00.6]} 11. Ne5
{[%clk 0:02:49]} 11... Bxd3 {[%clk 0:02:58.1]} 12. Qxd3 {[%clk 0:02:48.2]} 12...
Nxe5 {[%clk 0:02:54.4]} 13. Bxe5 {[%clk 0:02:47.3]} 13... Rc8 {[%clk 0:02:42]}
14. Nd2 {[%clk 0:02:42.1]} 14... Qd7 {[%clk 0:02:36.5]} 15. a4 {[%clk
0:02:38.1]} 15... a6 {[%clk 0:02:33.1]} 16. a5 {[%clk 0:02:35.8]} 16... Qf5
{[%clk 0:02:32]} 17. Qxf5 {[%clk 0:02:31.7]} 17... gxf5 {[%clk 0:02:32.9]} 18.
Nb3 {[%clk 0:02:05.5]} 18... Ne4 {[%clk 0:02:20.3]} 19. Bxg7 {[%clk 0:02:04.3]}
19... Kxg7 {[%clk 0:02:20.3]} 20. f3 {[%clk 0:02:02.7]} 20... Nd6 {[%clk
0:02:20.3]} 21. Nc5 {[%clk 0:01:59.1]} 21... Rc6 {[%clk 0:02:03.5]} 22. Re5
{[%clk 0:01:53]} 22... e6 {[%clk 0:01:58.7]} 23. g4 {[%clk 0:01:28.2]} 23... Nc4
{[%clk 0:01:53.7]} 24. Re2 {[%clk 0:01:27.2]} 24... Kf6 {[%clk 0:01:25]} 25. Kf2
{[%clk 0:01:04.1]} 25... h5 {[%clk 0:01:09.3]} 26. gxf5 {[%clk 0:00:58.2]} 26...
Kxf5 {[%clk 0:01:05.1]} 27. b4 {[%clk 0:00:51.4]} 27... Nd6 {[%clk 0:00:33]} 28.
Rg1 {[%clk 0:00:50.8]} 28... Kf6 {[%clk 0:00:29.7]} 29. Re5 {[%clk 0:00:35.7]}
29... Rh8 {[%clk 0:00:25.4]} 30. Ke2 {[%clk 0:00:20.6]} 30... Nf5 {[%clk
0:00:17.1]} 31. Kd3 {[%clk 0:00:18.3]} 31... Rhc8 {[%clk 0:00:14.4]} 32. Rc1
{[%clk 0:00:16.6]} 32... R6c7 {[%clk 0:00:03.3]} 33. Ree1 {[%clk 0:00:14.3]}
33... Rg8 {[%clk 0:00:03.3]} 34. Rg1 {[%clk 0:00:13.7]} 34... Rgc8 {[%clk
0:00:01.7]} 35. Rg2 {[%clk 0:00:11.4]} 35... h4 {[%clk 0:00:01.9]} 36. Rg4
{[%clk 0:00:10.7]} 36... Rh8 {[%clk 0:00:01.3]} 37. Rcg1 {[%clk 0:00:10.1]}
37... Rf8 {[%clk 0:00:01.5]} 38. Rf4 {[%clk 0:00:09.5]} 38... Rh8 {[%clk
0:00:01.3]} 39. Rgg4 {[%clk 0:00:09.2]} 39... Rf8 {[%clk 0:00:01.4]} 40. Rxh4
{[%clk 0:00:08.8]} 40... Rg8 {[%clk 0:00:01.8]} 41. Rhg4 {[%clk 0:00:07.6]}
41... Rh8 {[%clk 0:00:02.3]} 42. h4 {[%clk 0:00:08.1]} 42... Ke7 {[%clk
0:00:02.7]} 43. Rg5 {[%clk 0:00:08.4]} 43... Nxh4 {[%clk 0:00:02.4]} 44. Re5
{[%clk 0:00:06.2]} 44... f6 {[%clk 0:00:01.9]} 45. Rxe6+ {[%clk 0:00:05.9]}
45... Kf7 {[%clk 0:00:01.9]} 46. Rfxf6+ {[%clk 0:00:06.1]} 46... Kg7 {[%clk
0:00:02.4]} 47. Rf4 {[%clk 0:00:04.9]} 47... Ng6 {[%clk 0:00:02.5]} 48. Rg4
{[%clk 0:00:05]} 48... Rh6 {[%clk 0:00:03]} 49. Rexg6+ {[%clk 0:00:03.3]} 49...
Rxg6 {[%clk 0:00:02.9]} 50. Ne6+ {[%clk 0:00:04.2]} 50... Kf6 {[%clk 0:00:03.4]}
51. Rxg6+ {[%clk 0:00:04.9]} 1-0

[Event "Early-Titled-Tuesday-Blitz-May-14-2024"]
[Site "Chess.com"]
[Date "2024.05.14"]
[Round "9"]
[White "Likvidator228"]
[Black "SirGerhard"]
[Result "0-1"]
[WhiteElo "2538"]
[BlackElo "2718"]
[TimeControl "180+1"]
[EndTime "9:47:49 PDT"]
[Termination "SirGerhard won by resignation"]

1. d4 {[%clk 0:03:00.9]} 1... g6 {[%clk 0:02:58.7]} 2. Nf3 {[%clk 0:02:59.1]}
2... Bg7 {[%clk 0:02:58.9]} 3. Bf4 {[%clk 0:02:59.2]} 3... c5 {[%clk 0:02:57.1]}
4. e3 {[%clk 0:02:59.2]} 4... Nf6 {[%clk 0:02:56.2]} 5. c3 {[%clk 0:02:57.5]}
5... O-O {[%clk 0:02:53.3]} 6. h3 {[%clk 0:02:57.6]} 6... Qb6 {[%clk 0:02:37.7]}
7. Qb3 {[%clk 0:02:56.8]} 7... Nc6 {[%clk 0:02:34.1]} 8. Nbd2 {[%clk 0:02:56.5]}
8... d6 {[%clk 0:02:33.1]} 9. Nc4 {[%clk 0:02:52.1]} 9... Qd8 {[%clk 0:02:29.4]}
10. Be2 {[%clk 0:02:50]} 10... Nd5 {[%clk 0:02:26.3]} 11. Bg5 {[%clk 0:02:40.3]}
11... h6 {[%clk 0:02:23.5]} 12. Bh4 {[%clk 0:02:40.5]} 12... cxd4 {[%clk
0:02:23.5]} 13. cxd4 {[%clk 0:02:38.3]} 13... Na5 {[%clk 0:02:03.6]} 14. Qa3
{[%clk 0:02:18.6]} 14... Nxc4 {[%clk 0:02:02.9]} 15. Bxc4 {[%clk 0:02:18.8]}
15... Nb6 {[%clk 0:01:48.1]} 16. Be2 {[%clk 0:02:08.2]} 16... g5 {[%clk
0:01:42.4]} 17. Bg3 {[%clk 0:02:08.2]} 17... f5 {[%clk 0:01:42.7]} 18. Qb3+
{[%clk 0:02:04.2]} 18... Kh8 {[%clk 0:01:41.6]} 19. h4 {[%clk 0:01:55.5]} 19...
f4 {[%clk 0:01:25.6]} 20. Bh2 {[%clk 0:00:59.2]} 20... g4 {[%clk 0:01:25]} 21.
Nd2 {[%clk 0:00:54.3]} 21... e5 {[%clk 0:01:24.8]} 22. dxe5 {[%clk 0:00:48.2]}
22... dxe5 {[%clk 0:01:24.7]} 23. O-O-O {[%clk 0:00:44.5]} 23... Bf5 {[%clk
0:01:21.2]} 24. e4 {[%clk 0:00:44.8]} 24... Qc8+ {[%clk 0:01:16.4]} 25. Kb1
{[%clk 0:00:44.3]} 25... Be6 {[%clk 0:01:16.6]} 26. Qb4 {[%clk 0:00:35.3]} 26...
Rd8 {[%clk 0:01:04]} 27. Rc1 {[%clk 0:00:34.5]} 27... Qd7 {[%clk 0:01:03.4]} 28.
Rhd1 {[%clk 0:00:34.8]} 28... Qf7 {[%clk 0:01:03.1]} 29. Nb3 {[%clk 0:00:28.5]}
29... Rxd1 {[%clk 0:00:59.2]} 30. Rxd1 {[%clk 0:00:22.2]} 30... Rc8 {[%clk
0:00:53.9]} 31. f3 {[%clk 0:00:20.4]} 31... Bc4 {[%clk 0:00:37.6]} 32. Bxc4
{[%clk 0:00:19.9]} 32... Nxc4 {[%clk 0:00:34.9]} 33. Bg1 {[%clk 0:00:17.1]}
33... gxf3 {[%clk 0:00:28.3]} 34. gxf3 {[%clk 0:00:17.4]} 34... b6 {[%clk
0:00:22.6]} 35. Bf2 {[%clk 0:00:11.7]} 35... Kh7 {[%clk 0:00:21.6]} 36. Qb5
{[%clk 0:00:07.6]} 36... Qe6 {[%clk 0:00:20.3]} 37. Qd7 {[%clk 0:00:07.8]} 37...
Qxd7 {[%clk 0:00:17.3]} 38. Rxd7 {[%clk 0:00:08.7]} 38... a5 {[%clk 0:00:17.3]}
39. Nd2 {[%clk 0:00:08.9]} 39... Nxd2+ {[%clk 0:00:13.2]} 40. Rxd2 {[%clk
0:00:09.8]} 40... Rc6 {[%clk 0:00:13.3]} 41. b3 {[%clk 0:00:10]} 41... Kg6
{[%clk 0:00:12.8]} 42. Kb2 {[%clk 0:00:09.5]} 42... Bf8 {[%clk 0:00:12.1]} 43.
a3 {[%clk 0:00:09]} 43... Be7 {[%clk 0:00:10.8]} 44. Rd7 {[%clk 0:00:09.1]}
44... Bc5 {[%clk 0:00:08.1]} 45. Bxc5 {[%clk 0:00:08.8]} 45... bxc5 {[%clk
0:00:08.4]} 46. Rd5 {[%clk 0:00:07.8]} 46... Kh5 {[%clk 0:00:08.8]} 47. Rxe5+
{[%clk 0:00:08]} 47... Kxh4 {[%clk 0:00:09.7]} 48. Rf5 {[%clk 0:00:04.2]} 48...
Kg3 {[%clk 0:00:10.1]} 49. e5 {[%clk 0:00:04.7]} 49... Re6 {[%clk 0:00:08.1]}
50. Rf6 {[%clk 0:00:05.1]} 50... Rxe5 {[%clk 0:00:07.9]} 51. Kc3 {[%clk
0:00:05.8]} 51... Kxf3 {[%clk 0:00:08.1]} 52. Rxh6 {[%clk 0:00:06.1]} 52... Ke3
{[%clk 0:00:06.9]} 53. Kc2 {[%clk 0:00:05.9]} 53... f3 {[%clk 0:00:07.3]} 54.
Rh3 {[%clk 0:00:04.7]} 54... Ke2 {[%clk 0:00:07]} 55. Rh6 {[%clk 0:00:03.4]}
55... f2 {[%clk 0:00:07]} 0-1